[Event "HUN-chT Youth 2019"]
[Site "Budapest"]
[Date "2019.10.27"]
[Round "2.14"]
[White "Ongut, Tamas Gunes"]
[Black "Losonczi, Marcell"]
[Result "1/2-1/2"]
[ECO "C80"]
[WhiteElo "2214"]
[BlackElo "2249"]
[Annotator "NA"]
[PlyCount "98"]
[EventDate "2019.10.26"]
[EventType "team-tourn"]
[EventCountry "HUN"]
[SourceTitle "playchess.com"]
[Source "ChessBase"]
[SourceQuality "1"]
[TimeControl "5400+30"]

1. e4 {[%emt 0:00:35]} e5 {[%emt 0:00:00]} 2. Nf3 {[%emt 0:00:04]} Nc6 {[%emt 0:00:00]} 3. Bb5 {[%emt 0:00:05]} a6 {[%emt 0:00:00]} 4. Ba4 {[%emt 0:00:05]} Nf6 {[%emt 0:00:00]} 5. O-O {[%emt 0:00:07]} Nxe4 {[%emt 0:00:00]} 6. d4 {[%emt 0:00:41]} Be7 {[%emt 0:00:01]} 7. Re1 {[%emt 0:00:16]} b5 {[%emt 0:00:07]} 8. Rxe4 {[%emt 0:00:05] C84: Closed Ruy Lopez: Unusual White 6th moves} d5 {[%emt 0:00:06]} 9. Nxe5 {[%emt 0:00:10]} Nxe5 {[%emt 0:00:10]} 10. Rxe5 {[%emt 0:00:04]} bxa4 {[%emt 0:00:09]} 11. Qe2 {[%emt 0:00:03]} c6 {[%emt 0:00:18]} 12. Nc3 {[%emt 0:05:49]} Ra7 {[%emt 0:00:20]} 13. Nxa4 {[%emt 0:06:12]} O-O {[%emt 0:00:28] [#]} 14. Qd3 $146 {[%emt 0:28:07]} ({Predecessor:} 14. Bd2 Bd6 15. f4 Bxe5 16. fxe5 {½-½ (65) Saric,I (2695)-Ragger,M (2687) St Petersburg 2018}) 14... Bd6 {[%emt 0:02:09]} 15. Re1 {[%emt 0:06:59]} Qh4 {[%emt 0:02:07]} 16. h3 {[%emt 0:00:10]} Qh5 {[%emt 0:02:14]} 17. Bd2 {[%emt 0:19:35]} Bf5 {[%emt 0:01:32]} 18. Qc3 {[%emt 0:02:21]} Qg6 {[%emt 0:00:20]} 19. Nc5 {[%emt 0:02:47]} Bxc2 {[%emt 0:14:44]} 20. Rac1 {[%emt 0:01:39]} Bf5 {[%emt 0:01:06]} 21. Qf3 {[%emt 0:01:37]} h5 {[%emt 0:07:01]} 22. Bf4 {[%emt 0:02:42]} Bxc5 {[%emt 0:08:05]} 23. Rxc5 {[%emt 0:00:09]} Be4 {[%emt 0:00:11]} 24. Qg3 {[%emt 0:00:06]} Rb7 {[%emt 0:04:32]} 25. f3 {[%emt 0:06:35]} Qxg3 {[%emt 0:20:52]} 26. Bxg3 {[%emt 0:00:06]} Bd3 {[%emt 0:00:09]} 27. b3 {[%emt 0:02:03]} Rc8 {[%emt 0:00:35]} 28. Rec1 {[%emt 0:04:47]} Re8 {[%emt 0:20:54]} 29. Rxc6 {[%emt 0:00:16]} (29. Rd1 $16 Bf5 30. Rxc6) 29... Re2 {[%emt 0:01:36]} 30. R6c3 {[%emt 0:05:14]} Bf5 {[%emt 0:01:10]} 31. a3 $11 {[%emt 0:00:16]} Rb2 {[%emt 0:02:52]} 32. b4 {[%emt 0:00:18]} Re7 {[%emt 0:00:48]} 33. Re1 {[%emt 0:02:08]} Rxe1+ {[%emt 0:02:25]} 34. Bxe1 {[%emt 0:00:03]} Rc2 {[%emt 0:01:34]} 35. Re3 {[%emt 0:00:42]} Be6 {[%emt 0:04:49]} 36. Kh2 {[%emt 0:01:00]} Kf8 {[%emt 0:01:04]} 37. h4 {[%emt 0:01:25]} Ke7 {[%emt 0:01:14]} 38. Kg3 {[%emt 0:00:26]} Kd6 {[%emt 0:00:35]} 39. Re5 {[%emt 0:01:43]} g6 {[%emt 0:00:22]} 40. Re3 {[%emt 0:00:23]} Kc6 {[%emt 0:00:24]} 41. Rc3+ {[%emt 0:00:58]} Rxc3 {[%emt 0:00:05]} 42. Bxc3 {[%emt 0:00:04]} Kb5 {[%emt 0:00:43]} 43. Kf4 {[%emt 0:00:20]} Kc4 {[%emt 0:00:27]} 44. Bb2 {[%emt 0:00:13]} f6 {[%emt 0:00:59]} 45. g4 {[%emt 0:00:20]} Kb3 {[%emt 0:00:11]} 46. Bc1 {[%emt 0:00:09]} Kc2 {[%emt 0:00:16]} 47. Be3 {[%emt 0:00:33]} Kb3 {[%emt 0:00:05]} 48. gxh5 {[%emt 0:00:36]} gxh5 {[%emt 0:00:07]} 49. Bc1 {[%emt 0:00:41]} Kc2 {[%emt 0:00:06] Ke4} 1/2-1/2

[Event "HUN-chT Youth 2019"]
[Site "Budapest"]
[Date "2019.10.27"]
[Round "2.14"]
[White "Vadkerti, Vince"]
[Black "Vilics, Hanna"]
[Result "1/2-1/2"]
[ECO "B01"]
[WhiteElo "1531"]
[BlackElo "1253"]
[Annotator "NA"]
[PlyCount "117"]
[EventDate "2019.10.26"]
[EventType "team-tourn"]
[EventCountry "HUN"]
[SourceTitle "playchess.com"]
[Source "ChessBase"]
[SourceQuality "1"]
[TimeControl "5400+30"]

1. e4 {[%emt 0:00:00]} d5 {[%emt 0:00:00]} 2. exd5 {[%emt 0:00:00]} Qxd5 {[%emt 0:00:00]} 3. Nc3 {[%emt 0:00:00]} Qa5 {[%emt 0:00:00]} 4. d4 {[%emt 0:00:13]} Nf6 {[%emt 0:00:07]} 5. Nf3 {[%emt 0:00:31]} Bf5 {[%emt 0:00:11]} 6. Bc4 {[%emt 0:00:38]} c6 {[%emt 0:00:24]} 7. Bd2 {[%emt 0:00:45]} Qc7 {[%emt 0:00:18]} 8. Ne5 {[%emt 0:04:00]} e6 {[%emt 0:00:33]} 9. g4 {[%emt 0:01:46]} Be4 {[%emt 0:04:25]} 10. f3 {[%emt 0:02:20]} Bd5 {[%emt 0:00:19]} 11. g5 {[%emt 0:04:49]} Nfd7 {[%emt 0:01:03]} 12. Nxd7 {[%emt 0:01:33]} Nxd7 {[%emt 0:00:44]} 13. Nxd5 {[%emt 0:01:11]} cxd5 {[%emt 0:00:57]} 14. Bd3 {[%emt 0:01:02]} Bd6 {[%emt 0:01:24]} 15. Qe2 {[%emt 0:01:28]} Qb6 {[%emt 0:04:26]} 16. Bb5 {[%emt 0:06:10]} Qxd4 {[%emt 0:06:55]} 17. Bxd7+ {[%emt 0:01:35]} Kxd7 {[%emt 0:00:06]} 18. Qb5+ {[%emt 0:01:15]} Kc8 {[%emt 0:00:32]} 19. O-O-O {[%emt 0:01:29]} Qc5 {[%emt 0:03:53]} 20. Qf1 {[%emt 0:03:23]} Kd7 {[%emt 0:01:49]} 21. f4 {[%emt 0:00:54]} Rac8 {[%emt 0:01:36]} 22. Qd3 {[%emt 0:04:56]} Qc4 {[%emt 0:00:46]} 23. Be3 {[%emt 0:04:00]} Bxf4 {[%emt 0:02:55]} 24. Bxf4 {[%emt 0:01:04]} Qxf4+ {[%emt 0:00:06]} 25. Rd2 {[%emt 0:02:13]} Qc4 {[%emt 0:00:40]} 26. Qf3 {[%emt 0:02:28]} Rhf8 {[%emt 0:00:52]} 27. Rhd1 {[%emt 0:04:44]} Rc5 {[%emt 0:02:41]} 28. Qa3 {[%emt 0:03:00]} a6 {[%emt 0:01:13]} 29. c3 {[%emt 0:01:43]} Rfc8 {[%emt 0:02:41]} 30. Rd4 {[%emt 0:01:23]} Qe2 {[%emt 0:01:55]} 31. Qb4 {[%emt 0:06:22]} Rb5 {[%emt 0:04:07]} 32. Qa3 {[%emt 0:03:16]} Rc4 {[%emt 0:02:14]} 33. R1d2 {[%emt 0:03:00]} Qe1+ {[%emt 0:01:29]} 34. Rd1 {[%emt 0:00:46]} Qe3+ {[%emt 0:00:12]} 35. Kb1 {[%emt 0:01:10]} Rxd4 {[%emt 0:04:26]} 36. Rxd4 {[%emt 0:00:22]} Qe1+ {[%emt 0:01:02]} 37. Kc2 {[%emt 0:00:17]} Qe2+ {[%emt 0:00:15]} 38. Kc1 {[%emt 0:01:24]} e5 {[%emt 0:00:52]} 39. Rb4 {[%emt 0:03:36]} Rxb4 {[%emt 0:01:03]} 40. Qxb4 {[%emt 0:00:22]} Qb5 {[%emt 0:00:17]} 41. Qg4+ {[%emt 0:00:28]} Kd6 {[%emt 0:00:45]} 42. Qf5 {[%emt 0:00:47]} Qe2 {[%emt 0:00:52]} 43. Qxf7 {[%emt 0:01:02]} Qe3+ {[%emt 0:01:07]} 44. Kc2 {[%emt 0:00:34]} Qxg5 {[%emt 0:01:27]} 45. Qxb7 {[%emt 0:00:33]} Qg2+ {[%emt 0:00:26]} 46. Kb3 {[%emt 0:00:59]} e4 {[%emt 0:02:42]} 47. Qxa6+ {[%emt 0:00:38]} Ke5 {[%emt 0:00:06]} 48. Qb6 {[%emt 0:01:44]} Qd2 49. Qc7+ {[%emt 0:02:30]} Ke6 {[%emt 0:05:31]} 50. Qc6+ {[%emt 0:00:45]} Kf5 {[%emt 0:02:06]} 51. Qd7+ {[%emt 0:00:36]} Kf6 {[%emt 0:05:01]} 52. Qd6+ {[%emt 0:01:41]} Kf5 {[%emt 0:00:48]} 53. Qf8+ {[%emt 0:01:06]} Kg6 {[%emt 0:00:58]} 54. Qd6+ {[%emt 0:01:05]} Kh5 {[%emt 0:00:21]} 55. Qe5+ {[%emt 0:00:54]} g5 {[%emt 0:00:56]} 56. Qd4 {[%emt 0:01:37]} Qxh2 {[%emt 0:12:48]} 57. Qxd5 {[%emt 0:01:29]} Qf4 {[%emt 0:00:45]} 58. a4 {[%emt 0:01:23]} e3 {[%emt 0:00:22]} 59. Qd1+ {[%emt 0:00:22]} 1/2-1/2

[Event "HUN-chT Youth 2019"]
[Site "Budapest"]
[Date "2019.10.27"]
[Round "2.15"]
[White "Porpaczy, Marton"]
[Black "Puskas, Mihaly"]
[Result "0-1"]
[ECO "C44"]
[WhiteElo "1066"]
[BlackElo "1480"]
[Annotator "NA RC"]
[PlyCount "76"]
[EventDate "2019.10.26"]
[EventType "team-tourn"]
[EventCountry "HUN"]
[SourceTitle "playchess.com"]
[Source "ChessBase"]
[SourceQuality "1"]
[TimeControl "5400+30"]

1. e4 {[%emt 0:00:00]} e5 {[%emt 0:00:00]} 2. Nf3 {[%emt 0:00:00]} Nc6 {[%emt 0:00:05]} 3. c3 {[%emt 0:00:00]} Nf6 {[%emt 0:02:44]} 4. d4 {[%emt 0:00:05]} exd4 {[%emt 0:01:57]} 5. e5 {[%emt 0:00:18]} Qe7 {[%emt 0:02:19]} 6. cxd4 {[%emt 0:02:57]} d6 {[%emt 0:06:38]} 7. Bb5 {[%emt 0:08:26]} Bd7 {[%emt 0:00:45]} 8. O-O {[%emt 0:02:07]} Nd5 {[%emt 0:07:48]} 9. Re1 {[%emt 0:05:51]} Be6 {[%emt 0:08:11]} 10. Qc2 {[%emt 0:10:58]} Kd7 {[%emt 0:07:37]} 11. exd6 {[%emt 0:01:54]} cxd6 {[%emt 0:01:11]} 12. Nc3 {[%emt 0:01:27]} Qf6 {[%emt 0:11:58]} 13. Ne4 {[%emt 0:06:21]} Qf5 {[%emt 0:05:14]} 14. Bg5 {[%emt 0:06:02]} a6 {[%emt 0:06:42]} 15. Bxc6+ {[%emt 0:00:55]} bxc6 {[%emt 0:00:27]} 16. Rac1 {[%emt 0:00:37]} Nb4 {[%emt 0:10:22]} 17. Qc3 {[%emt 0:01:55]} Qb5 {[%emt 0:02:19]} 18. a4 {[%emt 0:10:32]} Qxa4 {[%emt 0:02:43]} 19. Ne5+ {[%emt 0:00:23]} dxe5 {[%emt 0:01:13]} 20. dxe5 {[%emt 0:02:42]} Bd5 {[%emt 0:01:28]} 21. Qh3+ {[%emt 0:03:08]} Kc7 {[%emt 0:03:11]} 22. Nc3 {[%emt 0:01:04]} Qa5 {[%emt 0:01:17]} 23. Nxd5+ {[%emt 0:00:23]} Nxd5 {[%emt 0:00:47]} 24. e6 {[%emt 0:01:38]} fxe6 {[%emt 0:01:17]} 25. Rxe6 {[%emt 0:00:42]} Bd6 {[%emt 0:00:59]} 26. Rce1 {[%emt 0:04:11]} Bb4 {[%emt 0:02:30]} 27. Qg3+ {[%emt 0:02:13]} Kb7 {[%emt 0:02:00]} 28. Rc1 {[%emt 0:01:14]} Rac8 {[%emt 0:00:55]} 29. Be3 Qc7 {[%emt 0:04:33]} 30. Qf3 {[%emt 0:06:51]} Rhf8 {[%emt 0:01:47]} 31. Qe2 {[%emt 0:00:30]} Nxe3 {[%emt 0:00:53]} 32. Rxe3 {[%emt 0:00:32]} Qb6 {[%emt 0:01:13]} 33. Rc2 {[%emt 0:01:23]} Bc5 {[%emt 0:00:52]} 34. Rxc5 {[%emt 0:01:14]} Qxc5 {[%emt 0:00:15]} 35. Rb3+ {[%emt 0:00:12]} Ka7 {[%emt 0:00:55]} 36. g3 {[%emt 0:00:40]} Rce8 {[%emt 0:01:02]} 37. Qg4 {[%emt 0:00:46]} Qxf2+ {[%emt 0:00:31]} 38. Kh1 {[%emt 0:00:25]} Qf1# {[%emt 0:00:10]} 0-1

[Event "HUN-chT Youth 2019"]
[Site "Budapest"]
[Date "2019.10.27"]
[Round "2.16"]
[White "Kovacsy, Barnabas"]
[Black "Forgacs, Attila Jr."]
[Result "1/2-1/2"]
[ECO "C84"]
[WhiteElo "2093"]
[BlackElo "2104"]
[Annotator "NA"]
[PlyCount "83"]
[EventDate "2019.10.26"]
[EventType "team-tourn"]
[EventCountry "HUN"]
[SourceTitle "playchess.com"]
[Source "ChessBase"]
[SourceQuality "1"]
[TimeControl "5400+30"]

1. e4 {[%emt 0:00:00]} e5 {[%emt 0:00:00]} 2. Nf3 {[%emt 0:00:00]} Nc6 {[%emt 0:00:00]} 3. Bb5 {[%emt 0:00:00]} a6 {[%emt 0:00:00]} 4. Ba4 {[%emt 0:00:00]} Nf6 {[%emt 0:00:00]} 5. O-O {[%emt 0:00:00]} Be7 {[%emt 0:00:08]} 6. d3 {[%emt 0:00:08]} d6 {[%emt 0:01:29]} 7. c3 {[%emt 0:00:13]} O-O {[%emt 0:00:55]} 8. Re1 {[%emt 0:01:13]} Re8 {[%emt 0:01:29]} 9. Nbd2 {[%emt 0:01:12] C84: Closed Ruy Lopez: Unusual White 6th moves} (9. h3 b5 10. Bc2 Bb7 11. Nbd2 Bf8 12. a4 Nb8 13. b4 Nbd7 14. Nb3 Rb8 15. axb5 axb5 16. Ra7 Nb6 {1-0 (46) Nepomniachtchi,I (2773)-Amin,B (2704) Abidjan 2019}) 9... Bf8 {[%emt 0:00:52]} 10. Nf1 {[%emt 0:01:02]} g6 {[%emt 0:03:22]} 11. Ng3 {[%emt 0:02:03]} Bg7 {[%emt 0:01:56]} 12. h3 {[%emt 0:05:15]} b5 {[%emt 0:04:32]} 13. Bc2 {[%emt 0:00:29]} d5 {[%emt 0:04:20]} 14. Bg5 {[%emt 0:09:18]} d4 {[%emt 0:02:38]} 15. cxd4 $146 {[%emt 0:01:05]} ({Predecessor:} 15. Qd2 Qd6 16. cxd4 Nxd4 17. Nxd4 Qxd4 {½-½ (68) Vykouk,J (2423)-Vajda,L (2547) Slovakia 2018}) 15... Nxd4 {[%emt 0:00:38]} 16. Nxd4 {[%emt 0:00:21]} Qxd4 {[%emt 0:00:36]} 17. Qf3 {[%emt 0:05:54]} Qb6 {[%emt 0:07:51]} 18. Be3 {[%emt 0:03:56]} Qd6 {[%emt 0:09:42]} 19. d4 {[%emt 0:04:50]} Bb7 {[%emt 0:02:48]} 20. d5 {[%emt 0:08:40]} c6 {[%emt 0:02:42]} 21. dxc6 {[%emt 0:00:28]} Qxc6 {[%emt 0:00:37]} 22. Rac1 {[%emt 0:01:48]} Rac8 {[%emt 0:03:02]} 23. Red1 {[%emt 0:02:51]} Red8 {[%emt 0:03:39]} 24. Rxd8+ {[%emt 0:01:49]} Rxd8 {[%emt 0:00:08]} 25. Bb3 {[%emt 0:00:36]} Qd7 {[%emt 0:01:49]} 26. Bg5 {[%emt 0:05:45]} Qe7 {[%emt 0:02:18]} 27. Qe3 {[%emt 0:04:45]} Qd6 {[%emt 0:10:40]} 28. Qa7 {[%emt 0:06:09]} Rd7 {[%emt 0:03:16]} 29. Rd1 {[%emt 0:00:28]} Qc7 {[%emt 0:03:33]} 30. Rc1 {[%emt 0:03:09]} Qd6 {[%emt 0:01:22]} 31. Be3 {[%emt 0:04:45]} h6 $14 {[%emt 0:08:21]} 32. Rd1 {[%emt 0:07:44]} Qc7 {[%emt 0:01:13]} 33. Rxd7 {[%emt 0:01:25]} Qxd7 {[%emt 0:00:12]} 34. f3 {[%emt 0:01:09]} Qc8 {[%emt 0:09:30]} 35. Ne2 {[%emt 0:01:28]} Nd7 {[%emt 0:04:30]} 36. Nc3 {[%emt 0:04:34]} Bf8 {[%emt 0:01:37]} 37. Bd5 {[%emt 0:04:01]} Bxd5 {[%emt 0:02:07]} 38. Nxd5 {[%emt 0:00:07]} Bc5 {[%emt 0:01:15]} 39. Bxc5 {[%emt 0:05:39]} Qxc5+ {[%emt 0:00:12]} 40. Qxc5 {[%emt 0:00:04]} Nxc5 {[%emt 0:00:08]} 41. Nc7 {[%emt 0:00:38]} b4 {[%emt 0:02:48]} 42. Kf1 {[%emt 0:01:52]} 1/2-1/2

[Event "HUN-chT Youth 2019"]
[Site "Budapest"]
[Date "2019.10.27"]
[Round "2.17"]
[White "Toth, Nikoletta"]
[Black "Koltai, Dora"]
[Result "1-0"]
[ECO "D00"]
[WhiteElo "1965"]
[BlackElo "1845"]
[Annotator "NA"]
[PlyCount "89"]
[EventDate "2019.10.26"]
[EventType "team-tourn"]
[EventCountry "HUN"]
[SourceTitle "playchess.com"]
[Source "ChessBase"]
[SourceQuality "1"]
[TimeControl "5400+30"]

1. d4 {[%emt 0:00:00]} d5 {[%emt 0:00:00]} 2. Bf4 {[%emt 0:00:02]} Nf6 {[%emt 0:00:17]} 3. e3 {[%emt 0:00:09]} c5 {[%emt 0:01:16]} 4. c3 {[%emt 0:00:06]} Nc6 {[%emt 0:00:55]} 5. Nd2 {[%emt 0:01:30]} Qb6 {[%emt 0:04:43]} 6. Qb3 {[%emt 0:12:34]} g6 {[%emt 0:18:35]} 7. Ngf3 {[%emt 0:03:06]} c4 {[%emt 0:02:34]} 8. Qxb6 {[%emt 0:18:04]} axb6 {[%emt 0:00:34]} 9. a3 {[%emt 0:00:06]} b5 {[%emt 0:06:53]} 10. Rc1 {[%emt 0:00:06]} Bg7 {[%emt 0:02:08]} 11. Be2 {[%emt 0:01:28]} O-O {[%emt 0:03:42]} 12. O-O {[%emt 0:00:27]} Bf5 {[%emt 0:10:58]} 13. h3 {[%emt 0:07:22]} Ne4 {[%emt 0:08:34]} 14. g4 {[%emt 0:12:31]} Nxd2 {[%emt 0:02:52]} 15. Nxd2 {[%emt 0:00:08]} Bd7 {[%emt 0:03:13]} 16. Bg3 {[%emt 0:13:51]} e5 {[%emt 0:10:11]} 17. dxe5 {[%emt 0:03:36]} Nxe5 {[%emt 0:03:07]} 18. Nf3 {[%emt 0:04:04]} Nxf3+ {[%emt 0:02:20]} 19. Bxf3 {[%emt 0:00:05]} Bc6 {[%emt 0:01:27]} 20. Rcd1 {[%emt 0:05:22]} Rfd8 {[%emt 0:02:14]} 21. Bg2 {[%emt 0:03:46]} Bf8 {[%emt 0:04:21]} 22. Rd2 {[%emt 0:01:24]} Be7 {[%emt 0:05:55]} 23. Rfd1 {[%emt 0:00:43]} Rd7 {[%emt 0:02:21]} 24. e4 {[%emt 0:04:13]} d4 {[%emt 0:01:43]} 25. Rxd4 {[%emt 0:01:47]} Rad8 {[%emt 0:00:50]} 26. Rxd7 {[%emt 0:01:21]} Rxd7 {[%emt 0:00:02]} 27. Rxd7 {[%emt 0:00:07]} Bxd7 {[%emt 0:00:01]} 28. f4 {[%emt 0:02:05]} Bc5+ {[%emt 0:01:22]} 29. Bf2 {[%emt 0:00:26]} b6 {[%emt 0:00:36]} 30. e5 {[%emt 0:01:43]} Kf8 {[%emt 0:00:27]} 31. Bd4 {[%emt 0:00:44]} Ke7 {[%emt 0:00:37]} 32. Kf2 {[%emt 0:00:37]} Ke6 {[%emt 0:00:34]} 33. Ke3 {[%emt 0:00:34]} f6 {[%emt 0:00:33]} 34. exf6 {[%emt 0:00:26]} Bxd4+ {[%emt 0:00:10]} 35. Kxd4 {[%emt 0:00:22]} Kxf6 {[%emt 0:00:13]} 36. Kd5 {[%emt 0:00:56]} Ke7 {[%emt 0:00:36]} 37. Ke5 {[%emt 0:00:24]} h5 {[%emt 0:01:01]} 38. f5 {[%emt 0:00:56]} hxg4 {[%emt 0:00:27]} 39. hxg4 {[%emt 0:00:17]} gxf5 {[%emt 0:00:13]} 40. gxf5 {[%emt 0:00:06]} Be8 {[%emt 0:00:54]} 41. f6+ {[%emt 0:00:31]} Kf7 {[%emt 0:00:16]} 42. Bd5+ {[%emt 0:00:11]} Kg6 {[%emt 0:00:15]} 43. f7 {[%emt 0:00:38]} Bxf7 {[%emt 0:00:05]} 44. Bxf7+ {[%emt 0:00:04]} Kxf7 {[%emt 0:00:06]} 45. Kd6 1-0

[Event "HUN-chT Youth 2019"]
[Site "Budapest"]
[Date "2019.10.27"]
[Round "2.18"]
[White "Matyassy, Lazar"]
[Black "Bernath, Bence"]
[Result "1/2-1/2"]
[ECO "C48"]
[WhiteElo "1652"]
[BlackElo "2004"]
[Annotator "NA RC"]
[PlyCount "65"]
[EventDate "2019.10.26"]
[EventType "team-tourn"]
[EventCountry "HUN"]
[SourceTitle "playchess.com"]
[Source "ChessBase"]
[SourceQuality "1"]
[TimeControl "5400+30"]

1. e4 {[%emt 0:00:00]} e5 {[%emt 0:00:00]} 2. Nf3 {[%emt 0:00:00]} Nc6 {[%emt 0:00:38]} 3. Nc3 {[%emt 0:00:00]} Nf6 {[%emt 0:00:31]} 4. Bb5 {[%emt 0:00:00]} Bd6 {[%emt 0:00:43]} 5. O-O {[%emt 0:00:10]} O-O {[%emt 0:00:40]} 6. h3 {[%emt 0:01:26]} h6 {[%emt 0:01:50]} 7. a3 {[%emt 0:01:18]} Ne7 {[%emt 0:03:16]} 8. Nxe5 {[%emt 0:01:41]} Bxe5 {[%emt 0:15:00]} 9. d4 {[%emt 0:00:06]} d6 {[%emt 0:01:37]} 10. dxe5 {[%emt 0:01:13]} dxe5 {[%emt 0:00:07]} 11. Be3 {[%emt 0:00:28]} b6 {[%emt 0:03:35]} 12. Qf3 {[%emt 0:03:34]} Ng6 {[%emt 0:03:50]} 13. Bc6 {[%emt 0:07:20]} Rb8 {[%emt 0:00:18]} 14. Rad1 {[%emt 0:00:35]} Qe7 {[%emt 0:00:09]} 15. Nd5 {[%emt 0:04:07]} Nxd5 {[%emt 0:00:55]} 16. Bxd5 {[%emt 0:00:23]} Kh7 {[%emt 0:05:17]} 17. Rd2 {[%emt 0:06:29]} Bd7 {[%emt 0:04:03]} 18. Rfd1 {[%emt 0:07:09]} Rbd8 {[%emt 0:02:00]} 19. Qg3 {[%emt 0:06:08]} f5 {[%emt 0:09:39]} 20. exf5 {[%emt 0:02:59]} Bxf5 {[%emt 0:00:19]} 21. Bb3 {[%emt 0:09:57]} Rd6 {[%emt 0:04:21]} 22. Kh2 {[%emt 0:10:37]} Be6 {[%emt 0:15:00]} 23. Bd5 {[%emt 0:04:08]} Bxd5 {[%emt 0:07:30]} 24. Rxd5 {[%emt 0:00:08]} Qd7 {[%emt 0:01:58]} 25. R5d2 {[%emt 0:01:18]} Qc6 {[%emt 0:03:01]} 26. Qg4 {[%emt 0:04:22]} Rfd8 {[%emt 0:00:43]} 27. Qf5 {[%emt 0:02:21]} Rf6 {[%emt 0:06:22]} 28. Qxf6 {[%emt 0:00:38]} gxf6 {[%emt 0:00:37]} 29. Rxd8 {[%emt 0:00:57]} Nh4 {[%emt 0:00:11]} 30. R1d7+ {[%emt 0:01:19]} Kg6 {[%emt 0:00:33]} 31. Rg8+ {[%emt 0:00:13]} Kf5 {[%emt 0:00:17]} 32. Rd2 {[%emt 0:00:41]} h5 {[%emt 0:00:36]} 33. f3 {[%emt 0:04:08]} 1/2-1/2

[Event "HUN-chT Youth 2019"]
[Site "Budapest"]
[Date "2019.10.27"]
[Round "2.19"]
[White "Acs, Marton"]
[Black "Tubak, Daniel"]
[Result "1/2-1/2"]
[ECO "A05"]
[WhiteElo "2126"]
[BlackElo "2219"]
[Annotator "RC"]
[PlyCount "65"]
[EventDate "2019.10.26"]
[EventType "team-tourn"]
[EventCountry "HUN"]
[SourceTitle "playchess.com"]
[Source "ChessBase"]
[SourceQuality "1"]
[TimeControl "5400+30"]

1. Nf3 {[%emt 0:00:00]} Nf6 {[%emt 0:00:00]} 2. g3 {[%emt 0:00:00]} g6 {[%emt 0:00:00]} 3. Bg2 {[%emt 0:00:00]} Bg7 {[%emt 0:00:00]} 4. O-O {[%emt 0:00:00]} O-O {[%emt 0:00:10]} 5. d4 {[%emt 0:00:14]} d6 {[%emt 0:00:17]} 6. a4 {[%emt 0:00:34]} Na6 {[%emt 0:10:23]} 7. Nc3 {[%emt 0:06:50]} c5 {[%emt 0:01:33]} 8. d5 {[%emt 0:18:47]} Nc7 {[%emt 0:01:31]} 9. h3 {[%emt 0:06:36]} a6 {[%emt 0:03:03]} 10. Nd2 {[%emt 0:01:11]} b6 {[%emt 0:05:09]} 11. Nc4 {[%emt 0:10:38]} Rb8 {[%emt 0:03:59]} 12. e4 {[%emt 0:01:43]} b5 {[%emt 0:05:36]} 13. axb5 {[%emt 0:00:50]} axb5 {[%emt 0:00:14]} 14. Na5 {[%emt 0:00:17]} Bd7 {[%emt 0:00:49]} 15. e5 {[%emt 0:06:51]} dxe5 {[%emt 0:08:45]} 16. Nc6 {[%emt 0:00:40]} Bxc6 {[%emt 0:00:09]} 17. dxc6 {[%emt 0:00:07]} b4 {[%emt 0:06:58]} 18. Na4 {[%emt 0:03:31]} Ne6 {[%emt 0:01:17]} 19. Qxd8 {[%emt 0:04:41]} Rbxd8 {[%emt 0:00:44]} 20. Be3 {[%emt 0:00:46]} Nd5 {[%emt 0:16:48]} 21. Nxc5 {[%emt 0:10:05]} Nxe3 {[%emt 0:00:51]} 22. Nxe6 {[%emt 0:01:54]} fxe6 {[%emt 0:00:25]} 23. fxe3 {[%emt 0:00:08]} e4 {[%emt 0:01:04]} 24. Rxf8+ {[%emt 0:12:11]} Kxf8 {[%emt 0:00:56]} 25. Bxe4 {[%emt 0:02:37]} Rc8 {[%emt 0:01:08]} 26. Ra2 {[%emt 0:06:49]} Be5 {[%emt 0:00:25]} 27. g4 {[%emt 0:01:46]} Kf7 {[%emt 0:01:27]} 28. Kf2 {[%emt 0:00:27]} Kf6 {[%emt 0:01:21]} 29. h4 {[%emt 0:01:50]} h6 {[%emt 0:00:24]} 30. Ke2 {[%emt 0:01:10]} Rd8 {[%emt 0:00:33]} 31. Bf3 {[%emt 0:01:18]} Kf7 {[%emt 0:00:39]} 32. Be4 {[%emt 0:00:01]} Kf6 {[%emt 0:00:02]} 33. Bf3 {[%emt 0:00:42]} 1/2-1/2

[Event "HUN-chT Youth 2019"]
[Site "Budapest"]
[Date "2019.10.27"]
[Round "2.20"]
[White "Kelemen, David"]
[Black "Erseki, Tamara"]
[Result "1-0"]
[ECO "B35"]
[WhiteElo "2166"]
[BlackElo "2008"]
[Annotator "RC"]
[PlyCount "65"]
[EventDate "2019.10.26"]
[EventType "team-tourn"]
[EventCountry "HUN"]
[SourceTitle "playchess.com"]
[Source "ChessBase"]
[SourceQuality "1"]
[TimeControl "5400+30"]

1. e4 {[%emt 0:00:00]} c5 {[%emt 0:00:00]} 2. Nf3 {[%emt 0:00:00]} Nc6 {[%emt 0:00:00]} 3. d4 {[%emt 0:00:00]} cxd4 {[%emt 0:00:00]} 4. Nxd4 {[%emt 0:00:00]} g6 {[%emt 0:00:40]} 5. Nc3 {[%emt 0:00:08]} Bg7 {[%emt 0:00:20]} 6. Be3 {[%emt 0:00:04]} Nf6 {[%emt 0:02:31]} 7. Bc4 {[%emt 0:00:09]} O-O {[%emt 0:01:15]} 8. Bb3 {[%emt 0:00:11]} Ng4 {[%emt 0:03:28]} 9. Qxg4 {[%emt 0:01:42]} Nxd4 {[%emt 0:00:05]} 10. Qd1 {[%emt 0:00:30]} Nc6 {[%emt 0:02:35]} 11. O-O {[%emt 0:01:58]} d6 {[%emt 0:04:35]} 12. f4 {[%emt 0:04:31]} Qa5 {[%emt 0:07:22]} 13. Qd2 {[%emt 0:04:13]} b5 {[%emt 0:07:58]} 14. Rae1 {[%emt 0:09:49]} b4 {[%emt 0:03:24]} 15. Nd1 {[%emt 0:00:21]} Ba6 {[%emt 0:00:23]} 16. Rf3 {[%emt 0:02:04]} Rad8 {[%emt 0:10:21]} 17. Rh3 {[%emt 0:28:39]} Bc8 {[%emt 0:14:02]} 18. f5 {[%emt 0:03:19]} Qe5 {[%emt 0:07:33]} 19. Bd5 {[%emt 0:02:30]} Bd7 {[%emt 0:04:04]} 20. c3 {[%emt 0:00:53]} bxc3 {[%emt 0:02:17]} 21. bxc3 {[%emt 0:00:05]} h5 {[%emt 0:11:43]} 22. Rg3 {[%emt 0:03:17]} e6 {[%emt 0:04:03]} 23. Bxc6 {[%emt 0:05:58]} Bxc6 {[%emt 0:00:05]} 24. Bd4 {[%emt 0:00:04]} Qb5 25. f6 {[%emt 0:01:36]} Bh8 {[%emt 0:02:13]} 26. Qh6 {[%emt 0:00:17]} Bxe4 {[%emt 0:02:02]} 27. Rxe4 {[%emt 0:00:49]} Qf5 {[%emt 0:00:05]} 28. Rf4 {[%emt 0:00:29]} Qb1 {[%emt 0:00:31]} 29. Rf1 {[%emt 0:00:33]} e5 {[%emt 0:00:38]} 30. Be3 {[%emt 0:04:13]} d5 {[%emt 0:01:38]} 31. Nf2 {[%emt 0:00:19]} Qc2 {[%emt 0:00:23]} 32. Nh3 {[%emt 0:00:22]} d4 {[%emt 0:00:28]} 33. Ng5 {[%emt 0:00:12]} 1-0